bitfinex-derivatives/quotes_ETHF0:USTF0_20250530
["timestamp","ask_amount","ask_price","bid_price","bid_amount"]
[1748634737886,0.77613,2576.5,2576.4,0.77611]
[1748634738574,0.77614,2576.4,2576.3,2.09516434]
[1748634740686,0.77614,2576.4,2576.3,1.31902434]
[1748634741381,0.77614,2576.4,2576.3,2.09519434]
[1748634742587,3.2078,2576.6,2576.3,2.09519434]
[1748634742588,0.77613,2576.5,2576.4,0.77611]
[1748634743282,0.77613,2576.5,2576.4,0.84604857]
[1748634743892,0.77613,2576.5,2576.4,0.06993857]
[1748634744188,0.77613,2576.5,2576.4,0.84607857]
[1748634744386,0.77613,2576.5,2576.4,4.94407857]
[1748634744584,3.2078,2576.6,2576.5,0.77611]
[1748634745282,3.2078,2576.6,2576.5,5.77611]
[1748634745483,3.2078,2577.2,2576.5,5.0]
[1748634745686,3.2078,2577.2,2577.1,0.77593]
[1748634746580,3.9837,2577.2,2577.1,0.77593]
[1748634747289,3.21362434,2577.5,2577.4,0.77584]
[1748634747686,3.98943434,2577.5,2577.4,4.87284]
[1748634748790,3.98943434,2577.5,2577.4,4.097]
[1748634753486,3.98943434,2577.5,2577.4,5.49324]
[1748634753688,3.21362434,2577.5,2577.4,5.49324]
[1748634755987,3.98943434,2577.5,2577.4,5.49324]
[1748634758892,0.78163434,2577.5,2577.4,5.49324]
[1748634759488,3.21362434,2577.5,2577.4,5.49324]
[1748634759693,3.98943434,2577.5,2577.4,5.49324]
[1748634759892,3.21362434,2577.5,2577.4,5.49324]
[1748634760393,3.98943434,2577.5,2577.4,0.6204]
[1748634760793,3.98943434,2577.5,2577.4,1.39624]
[1748634760988,3.98943434,2577.5,2577.4,2.73424]
[1748634762692,3.98943434,2577.5,2577.1,4.096]
[1748634762693,0.77587,2577.4,2577.3,0.77584]
[1748634762889,3.98946434,2577.5,2577.4,0.77584]
[1748634764692,3.21362434,2577.5,2577.4,0.77584]
[1748634765695,3.98943434,2577.5,2577.4,0.77584]
[1748634766595,0.77584,2577.4,2577.3,2.03436]
[1748634769996,0.77584,2577.4,2577.3,0.77586]
[1748634770194,0.77587,2577.3,2577.2,0.6689]
[1748634770392,0.77587,2577.3,2577.1,5.3424]
[1748634770393,0.7759,2577.2,2577.1,4.096]
[1748634770594,3.9837,2577.2,2577.1,4.096]
[1748634770900,3.9837,2577.2,2577.1,4.87193]
[1748634771101,3.9837,2577.2,2577.1,6.16963]
[1748634772401,3.9837,2577.2,2577.1,5.3937]
[1748634772801,3.9837,2577.2,2577.1,6.16963]
[1748634773002,3.9837,2577.2,2577.1,5.3937]
[1748634773298,3.9837,2577.2,2577.1,4.87193]
[1748634773500,3.9837,2577.2,2577.1,4.096]
[1748634774099,3.9837,2577.2,2577.1,4.87193]
[1748634774299,3.9837,2577.2,2577.1,4.096]
[1748634775404,3.9837,2577.2,2577.1,4.87193]
[1748634775905,3.9837,2577.2,2577.1,4.096]
[1748634778002,5.2202,2577.2,2577.1,4.096]
[1748634778400,0.77599,2576.9,2576.8,5.44862]
[1748634778599,3.98379,2576.9,2576.8,4.6726]
[1748634778904,3.98379,2576.9,2576.8,5.44862]
[1748634781317,3.2078,2576.9,2576.8,1.43262]
[1748634782509,3.2078,2577.2,2577.1,0.77593]
[1748634782713,3.2078,2577.2,2577.1,4.79193]
[1748634783009,3.9837,2577.2,2577.1,4.79193]
[1748634783406,0.7759,2577.2,2577.1,4.79193]
[1748634783803,0.7759,2577.3,2577.2,0.77586]
[1748634784112,0.77587,2577.3,2577.2,1.38679]
[1748634784413,0.77587,2577.3,2577.2,0.6109]
[1748634785412,1.93973,2577.3,2576.7,4.016]
[1748634785609,0.77602,2576.8,2576.7,4.6269]
[1748634786713,0.77602,2576.8,2576.7,5.40295]
[1748634786908,0.77602,2576.8,2576.7,0.6109]
[1748634787412,2.07172,2576.8,2576.7,0.6109]
[1748634787800,0.77608,2576.6,2576.5,1.8872]
[1748634788015,3.2078,2576.6,2576.5,0.77611]
[1748634788311,0.77611,2576.5,2576.4,4.6435]
[1748634788717,0.77611,2576.5,2576.4,5.41962]
[1748634789415,3.9839,2576.6,2576.5,0.77611]
[1748634789607,0.77611,2576.5,2576.4,4.6435]
[1748634789915,0.77611,2576.5,2576.4,4.016]
[1748634790099,2.06361,2576.5,2576.4,4.016]
[1748634790916,0.77614,2576.4,2576.3,0.00582434]
[1748634791110,2.06364,2576.4,2576.3,0.00582434]
[1748634792208,0.7763,2575.9,2575.8,4.016]
[1748634792411,3.9841,2575.9,2575.8,4.016]
[1748634792714,0.77636,2575.7,2575.6,3.86024894]
[1748634793314,0.77636,2575.7,2575.6,4.63663894]
[1748634793505,0.77636,2575.7,2575.4,10.70733498]
[1748634793506,3.98995434,2575.9,2575.8,0.77633]
[1748634793908,0.77636,2575.7,2575.6,2.10106]
[1748634794318,0.77635,2575.8,2575.7,0.77634]
[1748634795118,0.77636,2575.7,2575.6,1.3247]
[1748634795711,0.77636,2575.7,2575.6,2.10106]
[1748634799022,0.77636,2575.8,2575.7,0.77633]
[1748634799522,3.98992434,2575.9,2575.6,1.3247]
[1748634799820,3.98992434,2575.9,2575.8,0.77633]
[1748634800322,3.98992434,2575.9,2575.8,4.74333]
[1748634800323,3.21362434,2575.9,2575.8,4.74333]
[1748634800918,0.00582434,2575.9,2575.8,4.74333]
[1748634801219,0.00582434,2575.9,2575.8,5.97623]
[1748634801826,3.21362434,2575.9,2575.8,5.97623]
[1748634803622,3.98992434,2575.9,2575.8,5.97623]
[1748634803821,3.98992434,2575.9,2575.8,4.5817]
[1748634804224,3.98992434,2575.9,2575.8,5.35803]
[1748634805226,3.98992434,2575.9,2575.8,1.39103]
[1748634805620,0.77633,2575.8,2575.7,6.03485]
[1748634806123,5.24192434,2575.9,2575.8,0.77633]
[1748634807024,4.46562434,2575.9,2575.8,0.77633]
[1748634807228,3.21362434,2575.9,2575.8,0.77633]
[1748634807425,3.21362434,2575.9,2575.8,2.05803]
[1748634810327,3.2078,2576.2,2576.1,0.77623]
[1748634810527,3.2078,2576.2,2576.1,4.74423]
[1748634811831,0.00582434,2576.4,2576.3,0.77617]
[1748634814533,0.19982434,2576.4,2576.3,0.77617]
[1748634815930,0.19982434,2576.4,2576.3,5.77617]
[1748634817032,0.19982434,2576.4,2576.3,0.77617]
[1748634818231,0.19982434,2576.4,2576.3,0.84610857]
[1748634820231,0.19982434,2576.4,2576.3,0.06993857]
[1748634820433,0.97597434,2576.4,2576.3,0.84611857]
[1748634820636,0.97597434,2576.4,2576.3,0.06993857]
[1748634820828,0.97597434,2576.4,2576.3,0.84611857]
[1748634821329,2.26427434,2576.4,2576.3,0.84611857]
[1748634822035,2.26427434,2576.4,2576.3,0.06993857]
[1748634822235,7.26427434,2576.4,2576.3,0.06993857]
[1748634822441,2.26427434,2576.4,2576.3,0.06993857]
[1748634825339,2.26427434,2576.4,2576.3,0.84611857]
[1748634825535,2.26427434,2576.4,2576.3,0.06993857]
[1748634825737,2.26427434,2576.4,2576.3,0.84611857]
[1748634825938,0.19982434,2576.4,2576.3,0.84611857]
[1748634826235,0.97597434,2576.4,2576.3,0.84611857]
[1748634826438,0.19982434,2576.4,2576.3,0.84611857]
[1748634826839,0.97597434,2576.4,2576.3,0.84611857]
[1748634827742,0.19982434,2576.4,2576.3,0.84611857]
[1748634828040,0.19982434,2576.4,2576.3,2.15171857]
[1748634829142,0.97597434,2576.4,2576.3,2.15171857]
[1748634830243,0.19982434,2576.4,2576.3,2.15171857]
[1748634830741,0.77596,2577.1,2577.0,0.77593]
[1748634830939,3.98376,2577.1,2577.0,0.77593]
[1748634831342,3.98376,2577.1,2577.0,1.44633]
[1748634831944,0.77596,2577.1,2577.0,1.44633]
[1748634834347,0.77594,2577.1,2577.0,1.44633]
[1748634834850,1.25072434,2577.3,2577.0,0.6704]
[1748634835048,2.02663434,2577.3,2577.2,0.77591]
[1748634835253,0.00582434,2577.3,2577.2,0.77591]
[1748634836253,0.78170434,2577.3,2577.2,0.77591]
[1748634836744,0.00582434,2577.3,2577.2,0.77591]
[1748634836949,0.78170434,2577.3,2577.2,0.77591]
[1748634837754,0.00582434,2577.3,2577.2,0.77591]
[1748634838354,0.78170434,2577.3,2577.2,0.77591]
[1748634838756,0.00582434,2577.3,2577.2,0.77591]
[1748634840159,0.77594,2577.1,2577.0,0.6704]
[1748634840360,0.77594,2577.1,2576.8,0.00582434]
[1748634840361,0.776,2576.9,2576.8,0.00582434]
[1748634840562,3.9838,2576.9,2576.8,0.00582434]
[1748634840958,2.056,2576.9,2576.8,0.78185434]
[1748634841264,0.776,2576.9,2576.8,0.78185434]
[1748634841465,0.776,2576.9,2576.8,0.00582434]
[1748634842569,2.056,2576.9,2576.8,0.00582434]
[1748634845572,2.056,2576.9,2576.8,0.07576291]
[1748634847770,2.056,2576.9,2576.8,0.00582434]
[1748634848574,2.056,2576.9,2576.8,0.07576291]
[1748634848777,5.2638,2576.9,2576.8,0.07576291]
[1748634849274,5.2638,2576.9,2576.8,0.85179291]
[1748634849474,5.2638,2576.9,2576.8,0.07576291]
[1748634850375,0.77621,2576.2,2576.1,3.934]
[1748634850978,0.77621,2576.2,2576.1,4.71023]
[1748634851272,3.98401,2576.2,2576.1,3.934]
[1748634851975,3.98401,2576.2,2576.1,4.71024]
[1748634852174,0.77621,2576.2,2576.1,5.97754]
[1748634852672,3.2078,2576.5,2576.2,1.94054]
[1748634852871,3.2078,2576.5,2576.4,0.77615]
[1748634853072,0.77612,2576.5,2576.4,0.77615]
[1748634853875,0.77615,2576.4,2576.3,2.05137]
[1748634854078,0.77615,2576.4,2576.3,1.2752]
[1748634854677,0.77615,2576.4,2576.3,2.05138]
[1748634855177,0.77615,2576.4,2576.3,1.2752]
[1748634855672,0.77615,2576.4,2576.1,3.934]
[1748634855673,0.77621,2576.3,2576.1,3.934]
[1748634855878,0.77621,2576.3,2576.2,0.77621]
[1748634856767,0.77621,2576.3,2576.2,1.3063]
[1748634858279,0.77621,2576.3,2576.2,2.08251]
[1748634858982,0.77627,2576.1,2576.0,0.77624]
[1748634859175,0.77627,2576.1,2576.0,1.42014]
[1748634859480,0.77627,2576.1,2576.0,2.73874]
[1748634859876,0.77627,2576.1,2576.0,1.9625]
[1748634860280,0.77627,2576.1,2576.0,2.73877]
[1748634862684,3.2078,2576.5,2576.0,3.90316]
[1748634862992,0.77618,2576.4,2576.3,0.77615]
[1748634863180,0.77618,2576.4,2576.3,2.05275]
[1748634864782,0.77618,2576.4,2576.3,5.96875]
[1748634865179,0.77618,2576.4,2576.3,5.1926]
[1748634865378,0.77618,2576.4,2576.3,5.96878]
[1748634865877,0.77618,2576.4,2576.3,5.1926]
[1748634866681,0.77618,2576.3,2576.2,0.06993857]
[1748634867285,0.77618,2576.3,2576.2,0.84614857]
[1748634868184,0.77618,2576.3,2576.2,0.06993857]
[1748634868884,3.98393,2576.5,2576.4,0.77615]
[1748634869079,3.2078,2576.5,2576.4,0.77615]
[1748634869279,3.98392,2576.5,2576.4,0.77615]
[1748634869484,3.98392,2576.5,2576.4,1.39265]
[1748634870076,3.98392,2576.5,2576.4,0.6165]
[1748634870282,0.77618,2576.3,2576.2,0.06993857]
[1748634870485,0.77618,2576.3,2576.2,0.84614857]
[1748634870787,0.77618,2576.4,2576.3,0.77615]
[1748634870976,0.77618,2576.4,2576.3,2.07525]
[1748634871284,0.77618,2576.4,2576.3,2.68735]
[1748634871787,3.98394,2576.5,2576.4,0.77615]
[1748634872087,3.98394,2576.5,2576.4,5.98175]
[1748634874285,3.98394,2576.5,2576.4,5.2056]
[1748634874482,3.98394,2576.5,2576.4,5.98175]
[1748634874689,3.98394,2576.5,2576.4,5.2056]
[1748634875592,3.98394,2576.5,2576.4,3.916]
[1748634877090,3.98394,2576.5,2576.4,3.98593857]
[1748634880084,0.77621,2576.2,2576.1,5.1881]
[1748634880280,0.77627,2576.0,2575.9,0.00582434]
[1748634880886,2.01067,2576.0,2575.9,0.00582434]
[1748634883797,3.08749644,2576.0,2575.9,0.00582434]
[1748634884593,2.01067,2576.0,2575.9,0.00582434]
[1748634884800,7.01067,2576.0,2575.9,4.34e-06]
[1748634886095,0.77663,2574.8,2574.7,3.916]
[1748634886292,0.77663,2574.8,2574.4,4.5437]
[1748634886293,1.9416,2574.8,2574.4,4.5437]
[1748634886492,0.77672,2574.5,2574.4,4.5437]
[1748634886798,0.77672,2574.5,2574.4,6.59685]
[1748634887394,0.77672,2574.6,2574.5,0.77671]
[1748634887593,0.77672,2574.6,2574.5,2.05311]
[1748634887906,0.00582434,2574.7,2574.6,0.77669]
[1748634887907,0.78250434,2574.7,2574.6,0.77669]
[1748634888191,0.00582434,2574.7,2574.6,2.05309]
[1748634890198,0.00582434,2574.7,2574.6,2.12302857]
[1748634890501,3.98421,2575.6,2575.5,0.77642]
[1748634890897,3.2078,2575.6,2575.5,0.77642]
[1748634891301,3.98419,2575.6,2575.5,0.77642]
[1748634891502,3.2078,2575.6,2575.5,0.77642]
[1748634892904,0.00582434,2575.8,2575.7,0.77636]
[1748634893101,0.78215434,2575.8,2575.7,4.70936]
[1748634895601,0.00582434,2575.8,2575.7,4.70936]
[1748634896604,0.78215434,2575.8,2575.7,4.70936]
[1748634896906,0.00582434,2575.8,2575.7,4.70936]
[1748634897106,0.78215434,2575.8,2575.7,4.70936]
[1748634899605,0.78215434,2575.8,2575.7,5.36116]
[1748634900198,0.00582434,2575.8,2575.7,5.36116]
[1748634900400,3.2078,2576.8,2575.7,9.5848]
[1748634900599,0.77608,2576.7,2576.6,0.77606]
[1748634900806,0.77612,2576.6,2576.5,0.77611]
[1748634900996,0.77608,2576.7,2576.6,0.77607]
[1748634901305,0.00582434,2576.9,2576.6,1.94024]
[1748634901498,0.00582434,2576.9,2576.8,0.77603]
[1748634901695,0.00582434,2576.9,2576.7,1.2652]
[1748634901896,3.2078,2576.8,2576.4,4.5439]
[1748634902101,0.77611,2576.6,2576.5,1.2652]
[1748634902308,0.77619,2576.3,2576.1,3.933]
[1748634902506,3.2078,2576.5,2576.1,3.933]
[1748634902709,0.77618,2576.4,2576.3,0.77617]
[1748634902910,3.2078,2576.5,2576.2,1.2652]
[1748634903301,0.77618,2576.3,2576.2,1.2652]
[1748634903597,1.94039,2576.4,2575.8,3.933]
[1748634903899,1.94039,2576.4,2576.1,0.77624]
[1748634903900,0.77624,2576.2,2576.1,0.77624]
[1748634904102,3.2078,2576.8,2575.9,4.473]
[1748634904310,3.98383,2576.8,2576.7,0.77606]
[1748634904610,0.00582434,2576.9,2576.8,0.77603]
[1748634905010,0.77607,2576.7,2576.6,0.77606]
[1748634905208,0.77607,2576.7,2576.6,4.70906]
[1748634905512,0.77607,2576.7,2576.6,4.70909]
[1748634906012,3.98385,2576.8,2576.7,0.77606]
[1748634906207,0.00582434,2576.9,2576.8,0.77603]
[1748634906712,0.00582434,2576.9,2576.8,1.44843]
[1748634906908,0.78182434,2576.9,2576.8,0.6724]
[1748634907112,0.77603,2576.8,2576.7,1.3331]
[1748634907308,0.00582434,2576.9,2576.8,0.77603]
[1748634908010,0.78182434,2576.9,2576.8,0.77603]
[1748634909014,0.00582434,2576.9,2576.8,0.77603]
[1748634909417,0.78182434,2576.9,2576.8,0.77603]
[1748634910104,0.00582434,2576.9,2576.8,0.77603]
[1748634910305,0.78182434,2576.9,2576.8,0.77603]
[1748634911221,0.00582434,2576.9,2576.8,0.77603]
[1748634913227,1.94586434,2576.9,2576.6,3.98388]
[1748634913525,0.77606,2576.7,2576.6,3.98388]
[1748634913825,0.77605,2576.8,2576.7,0.77603]
[1748634914026,0.77605,2576.8,2576.7,2.06113]
[1748634914325,0.00582434,2576.9,2576.8,0.77603]
[1748634914519,0.00582434,2576.9,2576.8,2.06113]
[1748634916626,3.2078,2577.2,2577.1,0.77594]
[1748634916926,3.2078,2577.2,2577.1,4.70794]
[1748634917531,3.2078,2577.2,2577.1,5.93894]
[1748634918626,0.00582434,2577.4,2577.3,0.77588]
[1748634923030,0.78167434,2577.4,2577.3,0.77588]
[1748634923429,0.00582434,2577.4,2577.3,0.77588]
[1748634925131,0.00582434,2577.4,2577.3,2.06538]
[1748634929736,3.2078,2577.9,2577.5,1.93953]
[1748634929931,0.77569,2578.0,2577.9,0.7757]
[1748634930136,0.77569,2578.0,2577.9,4.7367]
[1748634930337,0.6454,2578.1,2578.0,0.77567]
[1748634930338,0.77567,2578.1,2578.0,0.77567]
[1748634930841,3.98343,2578.2,2578.1,0.77564]
[1748634931228,0.77944753,2578.3,2578.2,0.77561]
[1748634931433,0.00384753,2578.3,2578.2,0.77561]
[1748634931633,0.77942753,2578.3,2578.2,0.77561]
[1748634932035,0.00384753,2578.3,2578.2,0.77561]
[1748634933437,0.00384753,2578.3,2578.2,2.00481]
[1748634933835,0.19764753,2578.3,2578.2,2.00481]
[1748634934334,3.8699,2578.9,2578.8,0.77543]
[1748634934538,3.2078,2578.9,2578.8,4.73543]
[1748634934935,5.91504,2579.2,2578.8,4.73543]
[1748634935244,0.77535,2579.1,2579.0,0.77535]
[1748634935439,0.77535,2579.1,2579.0,0.77534]
[1748634936433,0.77535,2579.1,2578.9,1.2823]
[1748634936434,5.91502,2579.2,2579.1,0.77534]
[1748634937033,0.77536,2579.1,2579.0,0.77534]
[1748634937735,1.44316,2579.4,2579.3,0.77528]
[1748634938039,1.44316,2579.4,2579.3,3.96]
[1748634938236,2.74566,2579.4,2579.3,3.96]
[1748634938842,2.74566,2579.4,2579.3,4.73528]
[1748634939438,2.74566,2579.4,2579.3,3.96]
[1748634939640,2.74566,2579.4,2579.3,4.73528]
[1748634940641,2.74566,2579.4,2579.3,3.96]
[1748634941240,2.74566,2579.4,2579.3,4.73528]
[1748634941442,3.8399,2579.5,2579.4,0.77525]
[1748634941638,3.2078,2579.9,2579.4,0.77525]
[1748634941835,0.77514,2579.8,2579.7,0.77513]
[1748634942035,0.77514,2579.8,2579.7,4.73413]
[1748634942536,2.57785,2580.2,2579.7,4.73413]
[1748634942537,3.8481,2580.2,2579.7,3.959]
[1748634942839,0.77509,2580.0,2579.9,0.77509]
[1748634943040,2.03606,2580.1,2580.0,0.77507]
[1748634943239,3.8481,2580.2,2580.0,0.77507]
[1748634943240,3.8481,2580.2,2580.1,0.77504]
[1748634943440,3.2078,2580.2,2580.0,3.959]
[1748634943633,3.98283,2580.2,2580.1,0.77504]
[1748634943936,3.2078,2580.2,2580.1,0.77504]
[1748634944436,0.77504,2580.1,2580.0,3.959]
[1748634944631,2.01874,2580.1,2580.0,3.959]
[1748634944835,2.01874,2580.1,2580.0,4.73407]
[1748634945035,2.01874,2580.1,2580.0,3.959]
[1748634945236,0.77512,2579.9,2579.8,0.77512]
[1748634945437,0.77512,2579.9,2579.8,4.73412]
[1748634946344,0.77513,2579.8,2579.7,3.958]
[1748634946643,2.01883,2579.8,2579.7,3.958]
[1748634947239,2.01883,2579.8,2579.7,4.73316]
[1748634948247,2.01883,2579.8,2579.7,3.958]
[1748634949344,2.01883,2579.8,2579.7,4.73316]
[1748634949840,2.01883,2579.8,2579.7,3.958]
[1748634950035,2.01883,2579.8,2579.7,4.73316]
[1748634950246,2.08876857,2579.8,2579.7,3.958]
[1748634950446,5.29656857,2579.8,2579.7,3.958]
[1748634952441,5.29656857,2579.8,2579.3,3.921]
[1748634952442,13.39716857,2579.8,2579.3,3.921]
[1748634952634,0.77525,2579.4,2579.3,3.921]
[1748634952842,0.77525,2579.4,2579.3,4.69628]
[1748634953043,0.77525,2579.4,2579.3,3.921]
[1748634953944,0.77525,2579.4,2579.3,4.69628]
[1748634954247,0.77525,2579.4,2579.3,3.921]
[1748634954447,2.03555,2579.4,2579.3,3.921]
[1748634955847,0.7754,2579.0,2578.9,0.77539]
[1748634956147,0.7754,2579.0,2578.9,6.04649]
[1748634956638,0.77536,2579.1,2579.0,0.77534]
[1748634957246,0.77536,2579.1,2579.0,2.12174]
[1748634958439,0.77537,2579.0,2578.9,3.921]
[1748634958640,0.77537,2579.0,2578.9,4.6964]
[1748634958945,0.77536,2579.1,2579.0,0.77534]
[1748634959245,3.98313,2579.2,2579.1,0.77534]
[1748634959747,0.77526,2579.4,2579.3,0.77525]
[1748634960047,0.77526,2579.4,2579.3,4.69625]
[1748634960447,3.98304,2579.5,2579.4,0.77525]
[1748634960747,0.77525,2579.4,2579.3,4.69628]
[1748634960948,0.77525,2579.4,2579.3,3.921]
[1748634961243,0.77525,2579.4,2579.3,4.69628]
[1748634961839,0.77525,2579.4,2579.3,3.921]
[1748634962241,0.77525,2579.4,2579.3,4.69628]
[1748634963047,3.2078,2579.5,2579.4,0.77525]
[1748634963242,3.2078,2579.5,2579.4,2.02505]
[1748634963745,0.84507857,2579.8,2579.7,0.77516]
[1748634963940,0.84507857,2579.8,2579.7,4.69616]
[1748634964248,0.77514,2579.8,2579.7,4.69616]
[1748634964436,0.77514,2579.8,2579.7,3.921]
[1748634964842,0.77514,2579.8,2579.7,4.69616]
[1748634965649,0.77508,2580.0,2579.9,0.7751]
[1748634965848,3.2078,2580.2,2580.0,0.77504]
[1748634965849,0.77505,2580.1,2580.0,0.77504]
[1748634966048,0.7751,2580.0,2579.9,0.77508]
[1748634966346,0.7751,2580.0,2579.9,1.2258]
[1748634967049,0.7751,2580.0,2579.9,2.0009]
[1748634967949,3.98283,2580.2,2580.1,0.77504]
[1748634968144,3.836,2580.5,2580.1,3.921]
[1748634968349,3.836,2580.5,2580.3,0.77495]
[1748634968350,0.77497,2580.4,2580.3,0.77495]
[1748634968846,0.77498,2580.3,2580.2,2.00079]
[1748634969247,3.98265,2580.8,2580.7,0.77486]
[1748634969549,0.77488,2580.7,2580.6,0.77487]
[1748634969749,3.98265,2580.8,2580.7,0.77486]
[1748634970050,3.2078,2580.8,2580.7,0.77486]
[1748634970246,3.98263,2580.8,2580.7,0.77486]
[1748634970447,3.2078,2580.8,2580.7,0.77486]
[1748634970648,3.98263,2580.8,2580.7,0.77486]
[1748634971044,0.77483,2580.8,2580.7,0.77486]
[1748634971240,3.98263,2580.8,2580.7,0.77486]
[1748634972045,0.77486,2580.7,2580.6,2.05147]
[1748634972446,3.98266,2580.8,2580.7,0.77486]
[1748634973248,0.77486,2580.7,2580.6,2.05147]
[1748634974649,3.2078,2580.8,2580.7,0.77486]
[1748634975550,3.98263,2580.8,2580.6,1.2766]
[1748634975756,0.77486,2580.7,2580.6,2.05147]
[1748634975952,0.77489,2580.6,2580.5,0.6408]
[1748634976256,0.77492,2580.5,2580.4,1.42565]
[1748634976455,0.77492,2580.5,2580.4,4.5707]
[1748634976656,0.77492,2580.5,2580.4,5.34565]
[1748634977859,0.77504,2580.1,2580.0,0.00582434]
[1748634978063,0.77504,2580.1,2580.0,0.78089434]
[1748634979458,0.84497857,2580.1,2580.0,0.00582434]
[1748634979863,2.16247857,2580.1,2580.0,0.00582434]
[1748634981666,2.17299817,2580.1,2580.0,0.00582434]
[1748634985559,0.77519,2579.6,2579.5,5.199]
[1748634986366,0.77519,2579.6,2579.5,1.298]
[1748634986557,0.77525,2579.4,2579.3,0.00581294]
[1748634988765,2.10925,2579.4,2579.3,0.00581294]
[1748634989174,8.27216,2579.4,2578.6,3.2078]
[1748634989362,1.93844,2579.0,2578.7,1.2182]
[1748634989567,0.77543,2578.8,2578.7,1.2182]
[1748634991474,0.77543,2578.8,2578.7,1.99366]
[1748634991774,0.77543,2578.8,2578.7,1.2182]
[1748634993278,0.77546,2578.7,2578.6,1.2817]
[1748634993471,0.77546,2578.7,2578.6,3.39879]
[1748634993671,0.77546,2578.7,2578.6,2.6233]
[1748634996177,0.77546,2578.7,2578.6,3.39879]
[1748634996477,0.77546,2578.7,2578.6,2.6233]
[1748634997178,0.77546,2578.7,2578.6,3.39879]
[1748634998678,0.06993857,2578.8,2578.7,0.77546]
[1748634999279,0.84536857,2578.8,2578.7,0.77546]
[1748634999478,0.06993857,2578.8,2578.7,0.77546]
[1748635000180,0.84536857,2578.8,2578.7,0.77546]
[1748635001078,0.06993857,2578.8,2578.7,0.77546]
[1748635002181,0.84536857,2578.8,2578.7,0.77546]
[1748635004383,0.06993857,2578.8,2578.7,0.77546]
[1748635004582,0.84536857,2578.8,2578.7,0.77546]
[1748635007287,0.77546,2578.7,2578.6,2.6233]
[1748635007683,0.77546,2578.7,2578.6,3.39878]
[1748635008586,0.84539857,2578.8,2578.7,0.77546]
[1748635008782,0.84539857,2578.8,2578.7,2.00386]
[1748635009395,0.06993857,2578.8,2578.7,2.00386]
[1748635009976,3.98316,2579.1,2578.7,2.00386]
[1748635010182,3.98316,2579.1,2579.0,0.77537]
[1748635012190,0.7754,2579.0,2578.9,0.77539]
[1748635012387,0.77546,2578.7,2578.6,0.6195]
[1748635012592,3.98326,2578.7,2578.6,0.6195]
[1748635012986,4.05319857,2578.7,2578.6,0.6195]
[1748635013997,0.77549,2578.6,2578.5,0.00581294]
[1748635014294,2.02529,2578.6,2578.5,0.00581294]
[1748635017792,0.77549,2578.6,2578.5,0.00581294]
[1748635018390,2.06379,2578.6,2578.5,0.00581294]
[1748635020299,0.77561,2578.2,2578.1,3.902]
[1748635020497,3.98341,2578.2,2578.1,3.902]
[1748635021498,0.77567,2578.0,2577.9,0.78150294]
[1748635022202,0.77567,2578.0,2577.9,1.29101294]
[1748635022602,0.77567,2578.0,2577.9,0.00581294]
[1748635023305,2.07777,2578.0,2577.9,0.00581294]
[1748635025698,0.77585,2577.4,2577.3,0.77586]
[1748635026202,0.77591,2577.2,2577.1,4.63617894]
[1748635026501,0.77594,2577.1,2577.0,2.66797]
[1748635026704,0.77594,2577.1,2577.0,0.6382]
[1748635026900,3.2078,2577.2,2577.0,0.6382]
[1748635027108,3.2078,2577.2,2577.1,0.77594]
[1748635027306,3.2078,2577.2,2577.1,2.06264]
[1748635028205,3.98371,2577.2,2577.1,2.06264]
[1748635028405,3.2078,2577.2,2577.1,2.06264]
[1748635028809,3.98371,2577.2,2577.1,2.06264]
[1748635029710,0.7759,2577.3,2577.2,0.77588]
[1748635030007,3.2078,2577.5,2577.4,0.77585]
[1748635030604,3.2078,2577.5,2577.4,2.08205]
[1748635031511,3.98362,2577.5,2577.4,2.08205]
[1748635031706,3.98362,2577.5,2577.4,1.3062]
[1748635031912,3.98362,2577.5,2577.4,0.6416]
[1748635032116,0.77585,2577.4,2577.3,1.3026]
[1748635032416,0.77591,2577.2,2577.1,4.67893]
[1748635032608,3.98371,2577.2,2577.1,4.67893]
[1748635032909,3.2078,2577.2,2577.1,5.32053]
[1748635034111,3.98365,2577.5,2577.4,0.77585]
[1748635034312,3.2078,2577.5,2577.4,0.77585]
[1748635035416,3.98362,2577.5,2577.4,0.77585]
[1748635037617,3.2078,2577.5,2577.4,0.77585]
[1748635037809,3.98362,2577.5,2577.4,0.77585]
[1748635038811,3.2078,2577.5,2577.4,0.77585]
[1748635039110,3.98362,2577.5,2577.4,0.77585]
[1748635039316,3.2078,2577.5,2577.4,0.77585]
[1748635040613,3.98362,2577.5,2577.4,0.77585]
[1748635040917,3.2078,2577.5,2577.4,0.77585]
[1748635041419,3.27773857,2577.5,2577.4,0.77585]
[1748635041917,4.05355857,2577.5,2577.4,0.77585]
[1748635042216,3.27773857,2577.5,2577.4,0.77585]
[1748635044719,4.05355857,2577.5,2577.4,0.77585]
[1748635045322,0.77585,2577.4,2577.3,1.99787]
[1748635045722,3.98365,2577.5,2577.4,0.77585]
[1748635046022,3.98365,2577.5,2577.4,2.05805]
[1748635047927,3.98362,2577.5,2577.4,2.05805]
[1748635050326,3.2078,2577.5,2577.4,2.05805]
[1748635051033,0.77578,2577.7,2577.6,0.77579]
[1748635051230,0.77578,2577.7,2577.4,2.05805]
[1748635051231,3.2078,2577.8,2577.7,0.77576]
[1748635051425,0.77574,2577.9,2577.8,0.77569]
[1748635052028,0.77573,2577.8,2577.7,2.06475]
[1748635054036,0.77572,2577.9,2577.8,0.7757]
[1748635054230,0.77573,2577.8,2577.7,2.06473]
[1748635054635,0.84566857,2577.8,2577.7,2.06473]
[1748635058632,0.77579,2577.6,2577.5,4.5203]
[1748635058832,0.77579,2577.6,2577.5,3.901]
[1748635059038,0.77579,2577.6,2577.5,4.67682]